[Event "*** Titled Tuesday 3|2 Blitz"]
[Site "Chess.com"]
[Date "2015.11.03"]
[Round "4"]
[White "BIG_Pirate"]
[Black "Oligan22"]
[Result "1-0"]
[WhiteElo "2271"]
[BlackElo "2152"]
[TimeControl "180+2"]
[EndTime "11:48:45 PST"]
[Termination "BIG_Pirate won by resignation"]

1. Nf3 {[%clk 0:02:58.7]} 1... Nf6 {[%clk 0:03:00.2]} 2. c4 {[%clk 0:02:57.9]}
2... e6 {[%clk 0:03:01.3]} 3. Nc3 {[%clk 0:02:57.2]} 3... b6 {[%clk 0:03:02.5]}
4. g3 {[%clk 0:02:56]} 4... Bb7 {[%clk 0:03:04.4]} 5. Bg2 {[%clk 0:02:57.4]}
5... Be7 {[%clk 0:03:01.4]} 6. O-O {[%clk 0:02:58.8]} 6... O-O {[%clk
0:03:02.2]} 7. d4 {[%clk 0:02:59.6]} 7... d5 {[%clk 0:02:59.5]} 8. b3 {[%clk
0:02:58.8]} 8... Nbd7 {[%clk 0:02:45]} 9. Bb2 {[%clk 0:02:45.7]} 9... c5 {[%clk
0:02:30.2]} 10. dxc5 {[%clk 0:02:39.4]} 10... Nxc5 {[%clk 0:02:23.1]} 11. Ne5
{[%clk 0:01:28.2]} 11... Nce4 {[%clk 0:01:55.2]} 12. Rc1 {[%clk 0:00:48.5]}
12... dxc4 {[%clk 0:01:45.4]} 13. Nxc4 {[%clk 0:00:48.8]} 13... Nxc3 {[%clk
0:01:29.8]} 14. Bxc3 {[%clk 0:00:50.7]} 14... Bxg2 {[%clk 0:01:27.6]} 15. Kxg2
{[%clk 0:00:52.3]} 15... Qd5+ {[%clk 0:01:28.1]} 16. Qxd5 {[%clk 0:00:50.6]}
16... Nxd5 {[%clk 0:01:30]} 17. Bb2 {[%clk 0:00:51.9]} 17... Rac8 {[%clk
0:01:22.5]} 18. Rfd1 {[%clk 0:00:49.8]} 18... Rfd8 {[%clk 0:01:23]} 19. e4
{[%clk 0:00:42.4]} 19... Nb4 {[%clk 0:01:21.7]} 20. Ba3 {[%clk 0:00:37.1]} 20...
Kf8 {[%clk 0:01:10.4]} 21. Rxd8+ {[%clk 0:00:29.9]} 21... Rxd8 {[%clk
0:01:11.1]} 22. Ne5 {[%clk 0:00:31.7]} 22... f6 {[%clk 0:00:27.7]} 23. Nf3
{[%clk 0:00:20.5]} 23... Nxa2 {[%clk 0:00:26.8]} 24. Rc7 {[%clk 0:00:13.5]}
24... Bxa3 {[%clk 0:00:20.5]} 25. Rxa7 {[%clk 0:00:14.8]} 25... Nc3 {[%clk
0:00:18.9]} 26. Rxa3 {[%clk 0:00:15.6]} 26... Nxe4 {[%clk 0:00:20]} 27. Ra7
{[%clk 0:00:14.7]} 27... Nc5 {[%clk 0:00:14.4]} 28. b4 {[%clk 0:00:14.7]} 28...
Nd3 {[%clk 0:00:14.5]} 29. Rb7 {[%clk 0:00:11.6]} 29... Rd6 {[%clk 0:00:14]} 30.
b5 {[%clk 0:00:10.5]} 30... Nc5 {[%clk 0:00:13.6]} 31. Rc7 {[%clk 0:00:09.9]}
31... Na4 {[%clk 0:00:12]} 32. Ne1 {[%clk 0:00:08.6]} 32... Rd2 {[%clk
0:00:11.7]} 33. Nf3 {[%clk 0:00:06.3]} 33... Rb2 {[%clk 0:00:12]} 34. Nd4 {[%clk
0:00:07.5]} 34... e5 {[%clk 0:00:11.4]} 35. Ne6+ {[%clk 0:00:08.6]} 35... Ke8
{[%clk 0:00:11.4]} 36. Nxg7+ {[%clk 0:00:09.8]} 36... Kf8 {[%clk 0:00:12.8]} 37.
Ne6+ {[%clk 0:00:11.7]} 37... Kg8 {[%clk 0:00:14]} 38. Rg7+ {[%clk 0:00:11.3]}
38... Kh8 {[%clk 0:00:15.3]} 39. Ra7 {[%clk 0:00:12.3]} 39... h5 {[%clk
0:00:14.2]} 40. Rxa4 {[%clk 0:00:12.8]} 40... Rxb5 {[%clk 0:00:16.1]} 41. Ra7
{[%clk 0:00:12.2]} 1-0

[Event "*** Titled Tuesday 3|2 Blitz"]
[Site "Chess.com"]
[Date "2015.11.03"]
[Round "4"]
[White "Krutoy123"]
[Black "ruifeng"]
[Result "1-0"]
[WhiteElo "2303"]
[BlackElo "2139"]
[TimeControl "180+2"]
[EndTime "11:48:47 PST"]
[Termination "Krutoy123 won by resignation"]

1. e4 {[%clk 0:02:54.1]} 1... c5 {[%clk 0:02:58.2]} 2. Nf3 {[%clk 0:02:51.8]}
2... e6 {[%clk 0:02:59.2]} 3. b3 {[%clk 0:02:52.8]} 3... Nc6 {[%clk 0:02:54.7]}
4. Bb2 {[%clk 0:02:50.8]} 4... Nf6 {[%clk 0:02:52.6]} 5. e5 {[%clk 0:02:50.2]}
5... Nd5 {[%clk 0:02:53.6]} 6. g3 {[%clk 0:02:51.2]} 6... Be7 {[%clk 0:02:53.1]}
7. Bg2 {[%clk 0:02:51.6]} 7... O-O {[%clk 0:02:53.4]} 8. c4 {[%clk 0:02:50.9]}
8... Nc7 {[%clk 0:02:52.5]} 9. O-O {[%clk 0:02:50.9]} 9... d5 {[%clk 0:02:50.9]}
10. exd6 {[%clk 0:02:48.5]} 10... Qxd6 {[%clk 0:02:50.4]} 11. Nc3 {[%clk
0:02:47.1]} 11... b6 {[%clk 0:02:50.1]} 12. d4 {[%clk 0:02:45.2]} 12... cxd4
{[%clk 0:02:47.2]} 13. Nxd4 {[%clk 0:02:41.1]} 13... Qxd4 {[%clk 0:02:12]} 14.
Bxc6 {[%clk 0:02:38.6]} 14... Qxd1 {[%clk 0:02:13.1]} 15. Raxd1 {[%clk
0:02:38.2]} 15... Rb8 {[%clk 0:02:14.5]} 16. Nb5 {[%clk 0:02:15.9]} 16... Nxb5
{[%clk 0:02:10.3]} 17. cxb5 {[%clk 0:02:17.8]} 17... Bf6 {[%clk 0:02:07.8]} 18.
Ba3 {[%clk 0:02:16.9]} 18... e5 {[%clk 0:02:00]} 19. Bxf8 {[%clk 0:02:01.8]}
19... Kxf8 {[%clk 0:02:00.6]} 20. Rfe1 {[%clk 0:02:01.4]} 20... Bg4 {[%clk
0:01:55.9]} 21. f3 {[%clk 0:02:01.2]} 21... Be6 {[%clk 0:01:56.3]} 22. Bd7
{[%clk 0:01:56.5]} 22... Ke7 {[%clk 0:01:40.8]} 23. Bxe6 {[%clk 0:01:52.3]}
23... Kxe6 {[%clk 0:01:41.9]} 24. Rc1 {[%clk 0:01:53.9]} 24... Rb7 {[%clk
0:01:37.7]} 25. Rc6+ {[%clk 0:01:44.7]} 25... Kf5 {[%clk 0:01:37.5]} 26. Rd1
{[%clk 0:01:43.5]} 26... h5 {[%clk 0:01:35.6]} 27. Kf2 {[%clk 0:01:39.9]} 27...
Bg5 {[%clk 0:01:33.6]} 28. h3 {[%clk 0:01:38.4]} 28... f6 {[%clk 0:01:30]} 29.
h4 {[%clk 0:01:37.4]} 29... Bh6 {[%clk 0:01:29.4]} 30. Rg1 {[%clk 0:01:35.4]}
30... Rd7 {[%clk 0:01:22.2]} 31. g4+ {[%clk 0:01:32.7]} 31... hxg4 {[%clk
0:01:22.8]} 32. fxg4+ {[%clk 0:01:34.6]} 32... Kf4 {[%clk 0:01:22.3]} 33. Rc4+
{[%clk 0:01:35.3]} 33... e4 {[%clk 0:01:20.4]} 34. Ke2 {[%clk 0:01:30.9]} 34...
Rd5 {[%clk 0:01:07.7]} 35. a4 {[%clk 0:01:25.2]} 35... g6 {[%clk 0:00:53.6]} 36.
Rf1+ {[%clk 0:01:23.3]} 36... Ke5 {[%clk 0:00:52.3]} 37. Rd1 {[%clk 0:01:16.5]}
37... Rxd1 {[%clk 0:00:52.4]} 38. Kxd1 {[%clk 0:01:18.4]} 38... f5 {[%clk
0:00:53.6]} 39. Rc6 {[%clk 0:01:12.8]} 39... f4 {[%clk 0:00:48.5]} 40. Rxg6
{[%clk 0:01:08.9]} 40... Bf8 {[%clk 0:00:49.5]} 41. h5 {[%clk 0:00:52.2]} 41...
f3 {[%clk 0:00:47.2]} 42. h6 {[%clk 0:00:30.1]} 42... e3 {[%clk 0:00:46.7]} 43.
h7 {[%clk 0:00:30.3]} 43... e2+ {[%clk 0:00:45.6]} 44. Kd2 {[%clk 0:00:29.4]}
44... Bb4+ {[%clk 0:00:46.2]} 45. Kd3 {[%clk 0:00:29.4]} 45... e1=Q {[%clk
0:00:40.5]} 46. h8=Q+ {[%clk 0:00:28.6]} 46... Kf4 {[%clk 0:00:40.3]} 47. Qh2+
{[%clk 0:00:27.2]} 47... Qg3 {[%clk 0:00:39.1]} 48. Rf6+ {[%clk 0:00:27.4]}
48... Kxg4 {[%clk 0:00:39.8]} 49. Rg6+ {[%clk 0:00:27.7]} 1-0

[Event "*** Titled Tuesday 3|2 Blitz"]
[Site "Chess.com"]
[Date "2015.11.03"]
[Round "4"]
[White "Boryboy"]
[Black "GeorgMeier"]
[Result "1/2-1/2"]
[WhiteElo "2467"]
[BlackElo "2605"]
[TimeControl "180+2"]
[EndTime "11:48:57 PST"]
[Termination "Game drawn by agreement"]

1. d4 {[%clk 0:02:59.7]} 1... e6 {[%clk 0:03:00.2]} 2. g3 {[%clk 0:02:55.5]}
2... Nf6 {[%clk 0:02:59.6]} 3. Bg2 {[%clk 0:02:55.5]} 3... d5 {[%clk 0:03:01.2]}
4. Nf3 {[%clk 0:02:56.4]} 4... b5 {[%clk 0:03:01.5]} 5. O-O {[%clk 0:02:54]}
5... Nbd7 {[%clk 0:03:02.5]} 6. a4 {[%clk 0:02:55.3]} 6... b4 {[%clk 0:03:03.8]}
7. c4 {[%clk 0:02:56.1]} 7... bxc3 {[%clk 0:03:04.5]} 8. Nxc3 {[%clk 0:02:57.3]}
8... Ba6 {[%clk 0:02:54.6]} 9. Re1 {[%clk 0:02:49.8]} 9... Bb4 {[%clk
0:02:42.8]} 10. Bd2 {[%clk 0:02:19.3]} 10... O-O {[%clk 0:02:40.9]} 11. e4
{[%clk 0:01:28.3]} 11... Bxc3 {[%clk 0:02:39.2]} 12. bxc3 {[%clk 0:01:28.3]}
12... Nxe4 {[%clk 0:02:38.9]} 13. Ne5 {[%clk 0:01:28.1]} 13... Nxe5 {[%clk
0:02:35]} 14. dxe5 {[%clk 0:01:25.5]} 14... c5 {[%clk 0:01:59.7]} 15. Bxe4
{[%clk 0:01:25.4]} 15... dxe4 {[%clk 0:02:00.7]} 16. Be3 {[%clk 0:01:24.1]}
16... Rc8 {[%clk 0:01:55.9]} 17. Qxd8 {[%clk 0:01:23.4]} 17... Rfxd8 {[%clk
0:01:57.8]} 18. Red1 {[%clk 0:01:23.8]} 18... Bd3 {[%clk 0:01:55.9]} 19. Ra2
{[%clk 0:00:50.3]} 19... Kf8 {[%clk 0:00:49.8]} 20. Rb2 {[%clk 0:00:41.5]} 20...
Rd7 {[%clk 0:00:50.3]} 21. Rdd2 {[%clk 0:00:30.4]} 21... Ke8 {[%clk 0:00:51]}
22. Kg2 {[%clk 0:00:32]} 22... Kd8 {[%clk 0:00:42.4]} 23. f4 {[%clk 0:00:32.5]}
23... exf3+ {[%clk 0:00:27.8]} 24. Kxf3 {[%clk 0:00:32.3]} 24... h6 {[%clk
0:00:28.6]} 25. h4 {[%clk 0:00:31.5]} 25... Ke8 {[%clk 0:00:21.1]} 26. g4 {[%clk
0:00:31.6]} 26... Kd8 {[%clk 0:00:19.5]} 27. g5 {[%clk 0:00:32.4]} 27... h5
{[%clk 0:00:20.8]} 28. Kf4 {[%clk 0:00:28.9]} 28... Ke8 {[%clk 0:00:21.8]} 29.
Rb3 {[%clk 0:00:24.9]} 29... Ba6 {[%clk 0:00:15.2]} 30. Rbb2 {[%clk 0:00:21.1]}
30... Bd3 {[%clk 0:00:15.3]} 31. Rb3 {[%clk 0:00:22.2]} 31... Kd8 {[%clk
0:00:13.7]} 32. c4 {[%clk 0:00:14.6]} 32... Bxc4 {[%clk 0:00:13.6]} 33. Rxd7+
{[%clk 0:00:15.8]} 33... Kxd7 {[%clk 0:00:14.8]} 34. Rb7+ {[%clk 0:00:17.6]}
34... Rc7 {[%clk 0:00:14.6]} 35. Rxc7+ {[%clk 0:00:18.4]} 35... Kxc7 {[%clk
0:00:16.5]} 36. Bxc5 {[%clk 0:00:20.1]} 36... a6 {[%clk 0:00:17.4]} 37. a5
{[%clk 0:00:21.1]} 37... Kc6 {[%clk 0:00:18.2]} 38. Bb6 {[%clk 0:00:20.8]} 38...
Bd3 {[%clk 0:00:18.2]} 39. Bd8 {[%clk 0:00:21.7]} 39... Kb5 {[%clk 0:00:18.4]}
40. Bc7 {[%clk 0:00:23]} 40... Bg6 {[%clk 0:00:19.3]} 41. Bd8 {[%clk 0:00:23.4]}
41... Bf5 {[%clk 0:00:20.2]} 42. Bc7 {[%clk 0:00:24.7]} 42... Kc4 {[%clk
0:00:21.6]} 43. Bd6 {[%clk 0:00:25.5]} 43... Kd3 {[%clk 0:00:22.7]} 44. Bf8
{[%clk 0:00:26.6]} 44... g6 {[%clk 0:00:23.6]} 45. Kg3 {[%clk 0:00:27.5]} 45...
Ke4 {[%clk 0:00:24]} 46. Bd6 {[%clk 0:00:29]} 46... Bg4 {[%clk 0:00:25.5]} 47.
Bc7 {[%clk 0:00:30]} 47... Be2 {[%clk 0:00:26.8]} 48. Bd6 {[%clk 0:00:31.3]}
48... Bb5 {[%clk 0:00:28.7]} 49. Bc7 {[%clk 0:00:32.7]} 49... Ke3 {[%clk
0:00:30.2]} 50. Bd6 {[%clk 0:00:34]} 50... Kd4 {[%clk 0:00:31.7]} 51. Bc7 {[%clk
0:00:35.3]} 51... Kc5 {[%clk 0:00:32.5]} 52. Bd6+ {[%clk 0:00:36]} 1/2-1/2

[Event "*** Titled Tuesday 3|2 Blitz"]
[Site "Chess.com"]
[Date "2015.11.03"]
[Round "4"]
[White "bugsbunny444"]
[Black "xdb"]
[Result "1-0"]
[WhiteElo "2343"]
[BlackElo "2076"]
[TimeControl "180+2"]
[EndTime "11:48:59 PST"]
[Termination "bugsbunny444 won by resignation"]

1. Nf3 {[%clk 0:03:01.9]} 1... Nf6 {[%clk 0:02:59.6]} 2. c4 {[%clk 0:03:03]}
2... c5 {[%clk 0:02:56.1]} 3. g3 {[%clk 0:03:03.9]} 3... b6 {[%clk 0:02:55.3]}
4. Bg2 {[%clk 0:03:05.3]} 4... Bb7 {[%clk 0:02:57]} 5. O-O {[%clk 0:03:06.8]}
5... e6 {[%clk 0:02:58.4]} 6. b3 {[%clk 0:03:08.2]} 6... Be7 {[%clk 0:02:57.3]}
7. Bb2 {[%clk 0:03:09.6]} 7... O-O {[%clk 0:02:58.1]} 8. Nc3 {[%clk 0:03:11.3]}
8... a6 {[%clk 0:02:55.4]} 9. e3 {[%clk 0:03:12.5]} 9... d5 {[%clk 0:02:50.2]}
10. cxd5 {[%clk 0:03:11.8]} 10... exd5 {[%clk 0:02:52.1]} 11. d4 {[%clk
0:03:12.6]} 11... Nc6 {[%clk 0:02:42.6]} 12. Rc1 {[%clk 0:03:09.7]} 12... Re8
{[%clk 0:02:40.5]} 13. dxc5 {[%clk 0:02:57.1]} 13... bxc5 {[%clk 0:02:40.1]} 14.
Na4 {[%clk 0:02:58]} 14... Ne4 {[%clk 0:02:37.4]} 15. Nd2 {[%clk 0:02:58.1]}
15... Nb4 {[%clk 0:01:47.2]} 16. Nxe4 {[%clk 0:02:42.2]} 16... dxe4 {[%clk
0:01:49.1]} 17. Qg4 {[%clk 0:02:42.7]} 17... Bf6 {[%clk 0:01:45.1]} 18. Bxf6
{[%clk 0:02:37.8]} 18... Qxf6 {[%clk 0:01:47]} 19. Nxc5 {[%clk 0:02:38.7]} 19...
Bd5 {[%clk 0:01:44]} 20. Nxe4 {[%clk 0:02:33.7]} 20... Bxe4 {[%clk 0:01:43.5]}
21. Bxe4 {[%clk 0:02:34.4]} 21... Rad8 {[%clk 0:01:44.9]} 22. Bxh7+ {[%clk
0:02:26]} 22... Kxh7 {[%clk 0:01:46.8]} 23. Qxb4 {[%clk 0:02:27.1]} 23... Rd5
{[%clk 0:01:39.1]} 24. Rc5 {[%clk 0:01:41.4]} 24... Rd3 {[%clk 0:01:33]} 25.
Rh5+ {[%clk 0:01:30]} 25... Kg8 {[%clk 0:01:33.2]} 26. Qh4 {[%clk 0:01:31.6]}
26... Qxh4 {[%clk 0:01:30.8]} 27. Rxh4 {[%clk 0:01:33.5]} 27... Rd2 {[%clk
0:01:30.1]} 28. Ra4 {[%clk 0:01:35.1]} 28... Re6 {[%clk 0:01:29.5]} 29. e4
{[%clk 0:01:12.3]} 29... Rc6 {[%clk 0:01:29.1]} 30. h4 {[%clk 0:01:02.3]} 30...
Kh7 {[%clk 0:01:24.2]} 31. e5 {[%clk 0:00:56.1]} 31... Kg6 {[%clk 0:01:23.9]}
32. Re1 {[%clk 0:00:41.7]} 32... Kf5 {[%clk 0:01:24.7]} 33. Rf4+ {[%clk
0:00:31.4]} 33... Ke6 {[%clk 0:01:25.3]} 34. a4 {[%clk 0:00:30.1]} 34... Rb2
{[%clk 0:01:19.1]} 35. b4 {[%clk 0:00:30.2]} 35... Rb6 {[%clk 0:01:13.2]} 36.
Ree4 {[%clk 0:00:27.6]} 36... Ra2 {[%clk 0:01:11.5]} 37. a5 {[%clk 0:00:21.1]}
37... Rb5 {[%clk 0:01:12.1]} 38. Rg4 {[%clk 0:00:19.9]} 38... g6 {[%clk
0:01:12.2]} 39. Rgf4 {[%clk 0:00:19.9]} 39... Rb2 {[%clk 0:01:10.9]} 40. Rf6+
{[%clk 0:00:20.7]} 40... Ke7 {[%clk 0:01:10.7]} 41. Rxa6 {[%clk 0:00:21]} 41...
R2xb4 {[%clk 0:01:12.2]} 42. Rxb4 {[%clk 0:00:21.7]} 42... Rxb4 {[%clk
0:01:14.1]} 43. Rf6 {[%clk 0:00:19.7]} 43... Rb5 {[%clk 0:01:13.9]} 44. f4
{[%clk 0:00:13.1]} 44... Rxa5 {[%clk 0:01:14.9]} 45. Kg2 {[%clk 0:00:14.6]}
45... Ra3 {[%clk 0:01:01.5]} 46. Kh3 {[%clk 0:00:15.5]} 46... Re3 {[%clk
0:01:01.1]} 47. Kg4 {[%clk 0:00:16.7]} 47... Kf8 {[%clk 0:01:01.5]} 48. e6
{[%clk 0:00:13.2]} 48... Rxe6 {[%clk 0:01:01.9]} 49. Rxe6 {[%clk 0:00:14.6]}
49... fxe6 {[%clk 0:01:03.8]} 50. Kg5 {[%clk 0:00:16]} 50... Kg7 {[%clk
0:01:05.4]} 51. g4 {[%clk 0:00:16.4]} 51... Kf7 {[%clk 0:01:04]} 52. Kh6 {[%clk
0:00:10.5]} 52... Kf6 {[%clk 0:01:03.5]} 53. Kh7 {[%clk 0:00:10.6]} 53... Kf7
{[%clk 0:01:04.7]} 54. g5 {[%clk 0:00:11.4]} 1-0

[Event "*** Titled Tuesday 3|2 Blitz"]
[Site "Chess.com"]
[Date "2015.11.03"]
[Round "4"]
[White "kleinebeer98"]
[Black "TomsKantans"]
[Result "0-1"]
[WhiteElo "2228"]
[BlackElo "2284"]
[TimeControl "180+2"]
[EndTime "11:49:18 PST"]
[Termination "TomsKantans won by resignation"]

1. e4 {[%clk 0:03:01.9]} 1... d5 {[%clk 0:02:52.6]} 2. exd5 {[%clk 0:03:01.3]}
2... Qxd5 {[%clk 0:02:52.4]} 3. Nf3 {[%clk 0:03:02]} 3... g6 {[%clk 0:02:48.8]}
4. Be2 {[%clk 0:02:56.6]} 4... Bg7 {[%clk 0:02:48.9]} 5. O-O {[%clk 0:02:57.6]}
5... Nc6 {[%clk 0:02:47.6]} 6. c3 {[%clk 0:02:45.1]} 6... Nf6 {[%clk 0:02:46.1]}
7. d4 {[%clk 0:02:42.3]} 7... O-O {[%clk 0:02:46.3]} 8. Re1 {[%clk 0:02:40.8]}
8... Bf5 {[%clk 0:02:43.7]} 9. Na3 {[%clk 0:02:37.8]} 9... Rad8 {[%clk
0:02:42.3]} 10. Bf4 {[%clk 0:02:33.8]} 10... Qd7 {[%clk 0:02:40.8]} 11. Qb3
{[%clk 0:02:23.1]} 11... Nd5 {[%clk 0:02:37.2]} 12. Bg3 {[%clk 0:02:18.6]} 12...
Na5 {[%clk 0:02:36.1]} 13. Qb5 {[%clk 0:02:08.9]} 13... Qxb5 {[%clk 0:02:35.3]}
14. Nxb5 {[%clk 0:02:10.8]} 14... c6 {[%clk 0:02:30.9]} 15. Na3 {[%clk
0:02:05.5]} 15... b6 {[%clk 0:02:20]} 16. Ba6 {[%clk 0:02:00.7]} 16... Bc8
{[%clk 0:01:55.4]} 17. Bxc8 {[%clk 0:01:59.2]} 17... Rxc8 {[%clk 0:01:57.3]} 18.
c4 {[%clk 0:01:47.5]} 18... Nb4 {[%clk 0:01:58.1]} 19. Rxe7 {[%clk 0:01:47.5]}
19... c5 {[%clk 0:01:58.5]} 20. Rd1 {[%clk 0:01:14.2]} 20... cxd4 {[%clk
0:01:58.1]} 21. b3 {[%clk 0:01:15.1]} 21... Nxa2 {[%clk 0:01:56.4]} 22. Rxa7
{[%clk 0:01:05.6]} 22... Nc3 {[%clk 0:01:53.1]} 23. Rd3 {[%clk 0:01:05.1]} 23...
Nxb3 {[%clk 0:01:52.2]} 24. h4 {[%clk 0:00:45.7]} 24... Ra8 {[%clk 0:01:30.7]}
25. Rxa8 {[%clk 0:00:41]} 25... Rxa8 {[%clk 0:01:32.6]} 26. Nb5 {[%clk
0:00:42.4]} 26... Ne2+ {[%clk 0:00:54.1]} 27. Kh2 {[%clk 0:00:43.1]} 27... Nc5
{[%clk 0:00:54.9]} 28. Rd2 {[%clk 0:00:43]} 28... Nxg3 {[%clk 0:00:56]} 29. fxg3
{[%clk 0:00:43.9]} 29... d3 {[%clk 0:00:51.1]} 30. Ne1 {[%clk 0:00:20.1]} 30...
Bh6 {[%clk 0:00:46.3]} 31. Rd1 {[%clk 0:00:20.2]} 31... d2 {[%clk 0:00:45.2]}
32. Nf3 {[%clk 0:00:21.3]} 32... Ne4 {[%clk 0:00:43.9]} 33. Ng5 {[%clk
0:00:18.1]} 33... Nxg5 {[%clk 0:00:37]} 34. hxg5 {[%clk 0:00:20]} 34... Bxg5
{[%clk 0:00:38.6]} 35. Kg1 {[%clk 0:00:18.7]} 35... Ra2 {[%clk 0:00:28]} 36. Kf1
{[%clk 0:00:19]} 36... Rc2 {[%clk 0:00:29.1]} 37. Nd6 {[%clk 0:00:20.1]} 37...
f5 {[%clk 0:00:27.4]} 38. Ke2 {[%clk 0:00:21.3]} 38... h5 {[%clk 0:00:24.2]} 39.
Nc8 {[%clk 0:00:20.7]} 39... Rxc4 {[%clk 0:00:23.9]} 40. Nxb6 {[%clk 0:00:21.9]}
40... Re4+ {[%clk 0:00:24.6]} 41. Kf1 {[%clk 0:00:23.2]} 41... Kf7 {[%clk
0:00:25.4]} 42. Nd5 {[%clk 0:00:22.9]} 42... Rd4 {[%clk 0:00:25.4]} 43. Nc3
{[%clk 0:00:22]} 43... Rd3 {[%clk 0:00:26.5]} 44. Ne2 {[%clk 0:00:22.5]} 44...
Ke6 {[%clk 0:00:24.8]} 45. Kf2 {[%clk 0:00:22.4]} 45... Kd5 {[%clk 0:00:25.5]}
46. Ra1 {[%clk 0:00:20.2]} 46... Kc4 {[%clk 0:00:22]} 47. Rd1 {[%clk 0:00:15]}
47... Kb3 {[%clk 0:00:22.1]} 48. Ng1 {[%clk 0:00:15.5]} 48... Kc2 {[%clk
0:00:22.5]} 49. Ke2 {[%clk 0:00:16.8]} 49... Re3+ {[%clk 0:00:23.6]} 50. Kf2
{[%clk 0:00:18.4]} 50... Kxd1 {[%clk 0:00:24.8]} 51. Nf3 {[%clk 0:00:18.9]}
51... Rxf3+ {[%clk 0:00:24.5]} 52. gxf3 {[%clk 0:00:20.8]} 52... Kc2 {[%clk
0:00:25.6]} 53. f4 {[%clk 0:00:22.2]} 53... Bf6 {[%clk 0:00:26.7]} 0-1

[Event "*** Titled Tuesday 3|2 Blitz"]
[Site "Chess.com"]
[Date "2015.11.03"]
[Round "4"]
[White "GMHess"]
[Black "cassoulet"]
[Result "0-1"]
[WhiteElo "2407"]
[BlackElo "2255"]
[TimeControl "180+2"]
[EndTime "11:49:27 PST"]
[Termination "cassoulet won on time"]

1. g3 {[%clk 0:03:01.4]} 1... Nf6 {[%clk 0:03:00.2]} 2. Bg2 {[%clk 0:02:55.1]}
2... d5 {[%clk 0:03:01]} 3. Nf3 {[%clk 0:02:54.9]} 3... g6 {[%clk 0:03:02]} 4.
O-O {[%clk 0:02:56.6]} 4... Bg7 {[%clk 0:03:03.8]} 5. c4 {[%clk 0:02:58]} 5...
O-O {[%clk 0:03:05.7]} 6. cxd5 {[%clk 0:02:58.5]} 6... Nxd5 {[%clk 0:03:07.6]}
7. Nc3 {[%clk 0:02:59.9]} 7... Nc6 {[%clk 0:03:08.1]} 8. d4 {[%clk 0:02:58.5]}
8... Nxc3 {[%clk 0:03:08.9]} 9. bxc3 {[%clk 0:02:59]} 9... Rb8 {[%clk
0:03:09.7]} 10. Nd2 {[%clk 0:02:50.1]} 10... Bd7 {[%clk 0:03:07.7]} 11. e4
{[%clk 0:02:45.8]} 11... b5 {[%clk 0:03:06.2]} 12. a3 {[%clk 0:02:29.2]} 12...
a5 {[%clk 0:03:05.3]} 13. Nb3 {[%clk 0:02:13.9]} 13... b4 {[%clk 0:03:03]} 14.
axb4 {[%clk 0:02:15.2]} 14... axb4 {[%clk 0:03:03.4]} 15. c4 {[%clk 0:02:08.9]}
15... e5 {[%clk 0:02:48.3]} 16. d5 {[%clk 0:02:00.7]} 16... Nd4 {[%clk
0:02:49.2]} 17. Nxd4 {[%clk 0:01:54.5]} 17... exd4 {[%clk 0:02:51.1]} 18. Bb2
{[%clk 0:01:55.4]} 18... c5 {[%clk 0:02:51.3]} 19. f4 {[%clk 0:01:46]} 19... Ra8
{[%clk 0:02:48.2]} 20. e5 {[%clk 0:01:46.4]} 20... Bf5 {[%clk 0:02:42.3]} 21.
Rxa8 {[%clk 0:01:24.5]} 21... Qxa8 {[%clk 0:02:44.2]} 22. d6 {[%clk 0:01:24.8]}
22... Qa2 {[%clk 0:02:44.2]} 23. Qa1 {[%clk 0:00:54.7]} 23... Qxc4 {[%clk
0:02:42.4]} 24. Rc1 {[%clk 0:00:55.9]} 24... Qb5 {[%clk 0:02:39.8]} 25. Bd5
{[%clk 0:00:51.8]} 25... Be6 {[%clk 0:02:16.3]} 26. Bxe6 {[%clk 0:00:51.5]}
26... fxe6 {[%clk 0:02:18.2]} 27. Qa7 {[%clk 0:00:52.6]} 27... Qe2 {[%clk
0:02:13]} 28. Qxc5 {[%clk 0:00:41.8]} 28... Qxb2 {[%clk 0:02:13.2]} 29. d7
{[%clk 0:00:42.7]} 29... d3 {[%clk 0:02:11.9]} 30. Rf1 {[%clk 0:00:28.8]} 30...
Rd8 {[%clk 0:01:56.6]} 31. Qd6 {[%clk 0:00:15.3]} 31... Kf7 {[%clk 0:01:56.8]}
32. f5 {[%clk 0:00:07.1]} 32... gxf5 {[%clk 0:01:51.1]} 33. Rxf5+ {[%clk
0:00:08.6]} 33... exf5 {[%clk 0:01:51]} 34. e6+ {[%clk 0:00:10.5]} 34... Kg8
{[%clk 0:01:48.5]} 35. e7 {[%clk 0:00:11.9]} 35... Qd4+ {[%clk 0:00:36.9]} 36.
Qxd4 {[%clk 0:00:11.5]} 36... Bxd4+ {[%clk 0:00:38.8]} 37. Kg2 {[%clk
0:00:10.8]} 37... Bf6 {[%clk 0:00:39.9]} 38. e8=Q+ {[%clk 0:00:11.6]} 38... Kg7
{[%clk 0:00:41.3]} 39. Qe6 {[%clk 0:00:06.3]} 39... d2 {[%clk 0:00:40.4]} 40.
Qd5 {[%clk 0:00:03.9]} 40... b3 {[%clk 0:00:31.1]} 41. Qxb3 {[%clk 0:00:04.4]}
41... Rxd7 {[%clk 0:00:31.5]} 42. Qd1 {[%clk 0:00:06]} 42... Bg5 {[%clk
0:00:32.5]} 43. h4 {[%clk 0:00:06.3]} 43... Bh6 {[%clk 0:00:33.1]} 44. g4 {[%clk
0:00:07.7]} 44... Bf4 {[%clk 0:00:28.6]} 45. Kf3 {[%clk 0:00:06.8]} 45... Be5
{[%clk 0:00:27]} 46. gxf5 {[%clk 0:00:08]} 46... Kf6 {[%clk 0:00:28.2]} 47. Ke2
{[%clk 0:00:04.2]} 47... Bf4 {[%clk 0:00:29.3]} 48. Kf3 {[%clk 0:00:04.1]} 48...
Bh6 {[%clk 0:00:27.9]} 49. Qa1+ {[%clk 0:00:04.8]} 49... Kxf5 {[%clk 0:00:27.8]}
50. Qa5+ {[%clk 0:00:05.3]} 50... Kf6 {[%clk 0:00:28]} 0-1